bitfinex/quotes_BTCUSD_20250812
["timestamp","ask_amount","ask_price","bid_price","bid_amount"]
[1754993173180,0.00359843,118430.0,118420.0,0.85674172]
[1754993173389,0.00359843,118430.0,118420.0,0.88209672]
[1754993173810,0.00559843,118430.0,118420.0,0.88609672]
[1754993174014,0.00248843,118430.0,118420.0,0.88609672]
[1754993180395,0.00248843,118430.0,118420.0,0.39295864]
[1754993180590,0.00248843,118430.0,118420.0,0.88609672]
[1754993183600,0.00248843,118430.0,118420.0,1.01621672]
[1754993184015,0.00559843,118430.0,118420.0,1.01621672]
[1754993185879,0.00248843,118430.0,118420.0,1.01621672]
[1754993186502,0.00248843,118430.0,118420.0,0.52307864]
[1754993186706,0.00248843,118430.0,118420.0,1.01621672]
[1754993188554,0.00248843,118430.0,118420.0,0.52307864]
[1754993188757,0.00248843,118430.0,118420.0,1.01621672]
[1754993189791,0.00248843,118430.0,118420.0,0.52307864]
[1754993189991,0.00248843,118430.0,118420.0,1.01621672]
[1754993196812,0.00248843,118430.0,118420.0,0.52307864]
[1754993197015,0.00248843,118430.0,118420.0,1.01621672]
[1754993198716,0.00452843,118430.0,118420.0,1.01621672]
[1754993198934,0.00763843,118430.0,118420.0,1.01621672]
[1754993199345,0.00248843,118430.0,118420.0,1.01621672]
[1754993200434,0.00248843,118430.0,118420.0,0.99086172]
[1754993201487,0.00784843,118430.0,118420.0,0.98887172]
[1754993201702,0.00784843,118430.0,118420.0,0.36561364]
[1754993201911,0.07545883,118430.0,118420.0,0.28289039]
[1754993202124,0.07545883,118430.0,118420.0,0.114]
[1754993202125,0.73747303,118430.0,118420.0,0.114]
[1754993202336,0.24433495,118430.0,118420.0,0.17289039]
[1754993202785,0.24433495,118430.0,118420.0,0.004]
[1754993202990,0.24433495,118430.0,118420.0,0.17289039]
[1754993203624,0.24333495,118430.0,118420.0,0.17089039]
[1754993203827,0.24233495,118430.0,118420.0,0.16889039]
[1754993204045,0.24333495,118430.0,118420.0,0.17089039]
[1754993204454,0.24233495,118430.0,118420.0,0.16889039]
[1754993204876,0.24433495,118430.0,118420.0,0.17289039]
[1754993205086,0.24333495,118430.0,118420.0,0.16989039]
[1754993205515,0.24433495,118430.0,118420.0,0.17189039]
[1754993205870,0.24433495,118430.0,118420.0,0.003]
[1754993206076,0.24433495,118430.0,118420.0,0.0018]
[1754993206461,0.24433495,118430.0,118420.0,0.0818]
[1754993207758,0.17672455,118430.0,118420.0,0.0818]
[1754993208403,0.17672455,118430.0,118420.0,0.25069039]
[1754993208620,0.17672455,118430.0,118420.0,0.0818]
[1754993209584,0.17672455,118430.0,118420.0,0.17069039]
[1754993214839,0.66986263,118430.0,118420.0,0.17069039]
[1754993215042,0.66986263,118430.0,118420.0,0.0018]
[1754993215255,0.17672455,118430.0,118420.0,0.0018]
[1754993215530,0.17672455,118430.0,118420.0,0.17069039]
[1754993218392,0.30644455,118430.0,118420.0,0.17069039]
[1754993226744,0.67636347,118430.0,118420.0,0.19069039]
[1754993226957,0.30644455,118430.0,118420.0,0.56060931]
[1754993227176,0.30644455,118430.0,118420.0,0.19069039]
[1754993227381,0.67636347,118430.0,118420.0,0.0218]
[1754993231733,0.84157115,118430.0,118420.0,0.0018]
[1754993232275,0.75908672,118430.0,118420.0,0.0018]
[1754993234774,0.88248103,118430.0,118420.0,0.0018]
[1754993236199,0.3891678,118430.0,118420.0,0.0018]
[1754993236481,0.88248103,118430.0,118420.0,0.0018]
[1754993238728,0.93318103,118430.0,118420.0,0.0018]
[1754993238941,0.3891678,118430.0,118420.0,0.0018]
[1754993239146,0.88248103,118430.0,118420.0,0.0018]
[1754993239348,0.47165223,118430.0,118420.0,0.0018]
[1754993239550,0.96496546,118430.0,118420.0,0.0018]
[1754993239727,0.3891678,118430.0,118420.0,0.0018]
[1754993239928,0.88248103,118430.0,118420.0,0.0018]
[1754993240920,0.88248103,118430.0,118420.0,0.00184]
[1754993248210,0.89993005,118430.0,118420.0,0.00184]
[1754993248395,1.34593005,118430.0,118420.0,0.00184]
[1754993248662,1.00778048,118430.0,118420.0,0.00184]
[1754993249039,1.10031088,118430.0,118420.0,0.00184]
[1754993249239,1.09931088,118430.0,118420.0,4e-05]
[1754993249462,1.12359416,118430.0,118420.0,4e-05]
[1754993249975,1.12559416,118430.0,118420.0,0.001]
[1754993250178,1.12959416,118430.0,118420.0,0.00204]
[1754993256693,1.37653239,118430.0,118420.0,0.00204]
[1754993258137,1.74665812,118430.0,118420.0,0.00204]
[1754993258346,0.92660513,118410.0,118400.0,0.0302]
[1754993258553,1.24434296,118410.0,118400.0,0.0302]
[1754993258961,1.24754296,118410.0,118400.0,0.0302]
[1754993259163,1.27291296,118410.0,118400.0,0.0302]
[1754993259747,1.27391296,118410.0,118400.0,0.0312]
[1754993260316,0.89842723,118410.0,118400.0,0.03316]
[1754993260910,0.90339723,118410.0,118400.0,0.03316]
[1754993261344,0.90439723,118410.0,118400.0,0.03416]
[1754993263184,0.91302204,118410.0,118400.0,0.03416]
[1754993265215,0.91302204,118410.0,118400.0,0.0322]
[1754993265421,0.54289631,118410.0,118400.0,0.0322]
[1754993265876,0.91302204,118410.0,118400.0,0.03416]
[1754993266082,0.89982723,118410.0,118400.0,0.03416]
[1754993266276,0.46611233,118410.0,118400.0,0.03416]
[1754993266479,0.83623806,118410.0,118400.0,0.03648]
[1754993266634,0.46611233,118410.0,118400.0,0.20539891]
[1754993267077,0.33611233,118410.0,118400.0,0.20539891]
[1754993267236,0.46611233,118410.0,118400.0,0.03648]
[1754993267437,0.83623806,118410.0,118400.0,0.03648]
[1754993268085,0.46611233,118410.0,118400.0,0.03648]
[1754993268314,0.83623806,118410.0,118400.0,0.03648]
[1754993268754,0.46611233,118410.0,118400.0,0.03416]
[1754993268932,0.3836279,118410.0,118400.0,0.03416]
[1754993269185,0.87702427,118410.0,118400.0,0.03416]
[1754993272846,0.3836279,118410.0,118400.0,0.03416]
[1754993273669,0.87702427,118410.0,118400.0,0.03416]
[1754993274499,0.3836279,118410.0,118400.0,0.03416]
[1754993274698,0.87702427,118410.0,118400.0,0.03416]
[1754993276478,0.91540865,118410.0,118400.0,0.03416]
[1754993276919,0.91841865,118410.0,118400.0,0.03416]
[1754993278297,0.92037865,118410.0,118400.0,0.03416]
[1754993278469,0.88199427,118410.0,118400.0,0.03416]
[1754993279223,0.3885979,118410.0,118400.0,0.03416]
[1754993279455,0.88199427,118410.0,118400.0,0.03416]
[1754993279670,0.3885979,118410.0,118400.0,0.03416]
[1754993279895,0.9644787,118410.0,118400.0,0.03416]
[1754993280123,0.3885979,118410.0,118400.0,0.03416]
[1754993280297,0.88199427,118410.0,118400.0,0.03416]
[1754993280737,0.3885979,118410.0,118400.0,0.03416]
[1754993280949,0.88199427,118410.0,118400.0,0.03416]
[1754993281373,0.3885979,118410.0,118400.0,0.03416]
[1754993281592,0.47108233,118410.0,118400.0,0.03416]
[1754993281799,0.9644787,118410.0,118400.0,0.03416]
[1754993282015,0.88199427,118410.0,118400.0,0.03416]
[1754993282667,0.3885979,118410.0,118400.0,0.20307891]
[1754993282890,0.3885979,118410.0,118400.0,0.03416]
[1754993283799,0.17090465,118410.0,118400.0,0.20307891]
[1754993284059,0.30062465,118410.0,118400.0,0.20307891]
[1754993284266,0.30062465,118410.0,118400.0,0.03416]
[1754993284441,0.30062465,118410.0,118400.0,0.20307891]
[1754993284995,0.30058465,118410.0,118400.0,0.20307891]
[1754993285414,0.30058465,118410.0,118400.0,0.03416]
[1754993285757,0.30058465,118410.0,118400.0,0.20307891]
[1754993286362,0.30058465,118410.0,118400.0,0.03416]
[1754993287079,0.30058465,118410.0,118400.0,0.20307891]
[1754993287880,0.30058465,118410.0,118400.0,0.21152527]
[1754993290599,0.30058465,118410.0,118400.0,0.58151761]
[1754993291835,0.002,118410.0,118400.0,0.95150995]
[1754993292037,0.13164,118410.0,118400.0,0.96382995]
[1754993292182,0.13164,118410.0,118400.0,0.59383761]
[1754993292790,0.13164,118410.0,118400.0,0.59151761]
[1754993294184,0.30054465,118410.0,118400.0,0.22152527]
[1754993294405,0.30054465,118410.0,118400.0,0.59151761]
[1754993294618,0.13164,118410.0,118400.0,0.59151761]
[1754993295087,0.30054465,118410.0,118400.0,0.22152527]
[1754993295263,0.30054465,118410.0,118400.0,0.59151761]
[1754993296019,0.30050465,118410.0,118400.0,0.59151761]
[1754993296473,0.30050465,118410.0,118400.0,0.22152527]
[1754993296710,0.30050465,118410.0,118400.0,0.21307891]
[1754993296965,0.30586465,118410.0,118400.0,0.04416]
[1754993297202,0.30586465,118410.0,118400.0,0.0422]
[1754993297873,0.90867507,118410.0,118400.0,0.0422]
[1754993298096,0.90867507,118410.0,118400.0,0.0322]
[1754993298736,0.90252375,118410.0,118400.0,0.0322]
[1754993298941,1.03208375,118410.0,118400.0,0.0322]
[1754993302826,0.96447335,118410.0,118400.0,0.0322]
[1754993303778,0.47103233,118410.0,118400.0,0.0322]
[1754993303979,0.96447335,118410.0,118400.0,0.0322]
[1754993305225,0.98192237,118410.0,118400.0,0.0322]
[1754993306057,1.00729137,118410.0,118400.0,0.0322]
[1754993313001,1.00629137,118410.0,118400.0,0.0312]
[1754993313206,1.00529137,118410.0,118400.0,0.0302]
[1754993313418,1.00829137,118410.0,118400.0,0.0322]
[1754993318786,0.8849768,118410.0,118400.0,0.0322]
[1754993321721,0.8849768,118410.0,118400.0,0.03416]
[1754993321920,0.8596078,118410.0,118400.0,0.03416]
[1754993322515,0.8596078,118410.0,118400.0,0.0322]
[1754993323144,1.25510425,118410.0,118400.0,0.0322]
[1754993323340,0.51485135,118410.0,118400.0,0.0322]
[1754993323611,0.8849778,118410.0,118400.0,0.0322]
[1754993327426,1.25510425,118410.0,118400.0,0.0322]
[1754993328616,0.8849778,118410.0,118400.0,0.0322]
[1754993329772,0.51485135,118410.0,118400.0,0.0322]
[1754993329997,1.25510425,118410.0,118400.0,0.0322]
[1754993330428,1.25510425,118410.0,118400.0,1e-08]
[1754993330429,1.7435711,118410.0,118400.0,1e-08]
[1754993330638,0.26478259,118400.0,118390.0,0.025309]
[1754993330842,1.56990582,118400.0,118390.0,0.025309]
[1754993331053,1.55217925,118400.0,118390.0,0.025309]
[1754993331489,1.54817459,118400.0,118390.0,0.025309]
[1754993332113,1.55217459,118400.0,118390.0,0.026309]
[1754993332335,1.57748359,118400.0,118390.0,0.026309]
[1754993332544,1.62748359,118400.0,118390.0,0.026309]
[1754993332737,1.62948359,118400.0,118390.0,0.026309]
[1754993335333,1.60580359,118400.0,118390.0,0.026309]
[1754993335540,0.1685253,118380.0,118370.0,0.0002]
[1754993335738,1.00086462,118380.0,118370.0,0.0002]
[1754993336068,1.00410462,118380.0,118370.0,0.0002]
[1754993336272,1.00748862,118380.0,118370.0,0.0002]
[1754993336897,1.00797675,118380.0,118370.0,0.0002]
[1754993337702,1.01197675,118380.0,118370.0,0.0002]
[1754993338266,1.01197675,118380.0,118350.0,0.0009505]
[1754993338267,0.23715502,118360.0,118350.0,1e-08]
[1754993338500,0.80877746,118360.0,118350.0,1e-08]
[1754993338722,0.44216797,118360.0,118350.0,0.00196001]
[1754993338930,0.30424577,118360.0,118350.0,0.00196001]
[1754993339135,0.92730526,118360.0,118350.0,0.00196001]
[1754993339981,0.44487577,118360.0,118350.0,0.00196001]
[1754993340175,0.93865526,118360.0,118350.0,0.00196001]
[1754993340623,0.94165526,118360.0,118350.0,0.00196001]
[1754993341735,0.93965526,118360.0,118350.0,1e-08]
[1754993342148,0.94065526,118360.0,118350.0,1e-08]
[1754993343941,0.94065526,118360.0,118350.0,0.00196001]
[1754993344147,0.31224577,118360.0,118350.0,0.00196001]
[1754993344345,0.44156577,118360.0,118350.0,0.00428001]
[1754993344946,0.31224577,118360.0,118350.0,0.00428001]
[1754993345277,0.44156577,118360.0,118350.0,0.00428001]
[1754993345715,0.44156577,118360.0,118350.0,0.00196001]
[1754993347140,0.44156577,118360.0,118350.0,0.17095029]
[1754993347288,0.40646827,118360.0,118350.0,0.17327029]
[1754993347506,0.40646827,118360.0,118350.0,0.00428001]
[1754993347709,0.40646827,118360.0,118350.0,0.00196001]
[1754993349097,0.38901925,118360.0,118350.0,0.00196001]
[1754993349822,0.40646827,118360.0,118350.0,0.17095029]
[1754993352441,0.90554776,118360.0,118350.0,1e-08]
[1754993353504,0.43728131,118360.0,118350.0,1e-08]
[1754993353908,0.41176827,118360.0,118350.0,1e-08]
[1754993354778,0.90554776,118360.0,118350.0,1e-08]
[1754993356054,0.97315816,118360.0,118350.0,1e-08]
[1754993357021,0.47937867,118360.0,118350.0,1e-08]
[1754993357451,0.97315816,118360.0,118350.0,1e-08]
[1754993357662,1.05564259,118360.0,118350.0,1e-08]
[1754993358001,0.5618631,118360.0,118350.0,1e-08]
[1754993358204,1.05564259,118360.0,118350.0,1e-08]
[1754993358419,1.54942208,118360.0,118350.0,1e-08]
[1754993358614,1.57480308,118360.0,118350.0,1e-08]
[1754993359013,1.61650911,118360.0,118350.0,1e-08]
[1754993359217,1.61550911,118360.0,118350.0,1e-08]
[1754993359444,1.65923911,118360.0,118350.0,1e-08]
[1754993359643,1.66123911,118360.0,118350.0,1e-08]
[1754993360007,1.66323911,118360.0,118350.0,1e-08]
[1754993360204,1.52983911,118360.0,118350.0,1e-08]
[1754993360424,1.66623911,118360.0,118350.0,1e-08]
[1754993361072,1.67408821,118360.0,118350.0,1e-08]
[1754993361493,1.68397434,118360.0,118350.0,1e-08]
[1754993362163,1.63206,118360.0,118350.0,1e-08]
[1754993362380,1.61636394,118360.0,118350.0,1e-08]
[1754993363053,0.47585496,118360.0,118350.0,1e-08]
[1754993363262,0.55472496,118360.0,118350.0,1e-08]
[1754993363471,0.42512496,118360.0,118350.0,1e-08]
[1754993363676,0.55472496,118360.0,118350.0,1e-08]
[1754993363907,0.37586468,118360.0,118350.0,1e-08]
[1754993364116,0.99928417,118360.0,118350.0,0.00209001]
[1754993364539,0.50020468,118360.0,118350.0,0.00209001]
[1754993364745,0.47082368,118360.0,118350.0,0.00209001]
[1754993365162,0.47282368,118360.0,118350.0,0.00209001]
[1754993365554,0.46382368,118360.0,118350.0,0.00209001]
[1754993365811,0.4812727,118360.0,118350.0,0.00209001]
[1754993366021,0.4862727,118360.0,118350.0,0.00209001]
[1754993366230,0.4822727,118360.0,118350.0,0.00209001]
[1754993366662,0.4832727,118360.0,118350.0,0.00209001]
[1754993368403,0.4854327,118360.0,118350.0,0.00209001]
[1754993368613,0.4885727,118360.0,118350.0,0.00209001]
[1754993369597,0.4885727,118360.0,118350.0,1e-08]
[1754993370583,0.98235219,118360.0,118350.0,1e-08]
[1754993370785,0.89986776,118360.0,118350.0,1e-08]
[1754993370988,0.89986776,118360.0,118350.0,4.001e-05]
[1754993371198,0.89982776,118360.0,118350.0,4.001e-05]
[1754993371407,0.89882776,118360.0,118350.0,4.001e-05]
[1754993371837,0.91455326,118360.0,118350.0,4.001e-05]
[1754993372039,0.91355326,118360.0,118350.0,4.001e-05]
[1754993372240,0.91655326,118360.0,118350.0,4.001e-05]
[1754993372568,0.42277377,118360.0,118350.0,4.001e-05]
[1754993372779,0.91655326,118360.0,118350.0,4.001e-05]
[1754993373745,0.42277377,118360.0,118350.0,4.001e-05]
[1754993373950,0.91655326,118360.0,118350.0,4.001e-05]
[1754993375025,0.42277377,118360.0,118350.0,4.001e-05]
[1754993375184,0.91655326,118360.0,118350.0,4.001e-05]
[1754993376290,0.16900456,118340.0,118330.0,0.03110674]
[1754993376489,0.29852456,118340.0,118330.0,0.03319674]
[1754993377511,0.29901239,118340.0,118330.0,0.03319674]
[1754993378075,0.29901239,118340.0,118330.0,0.02819674]
[1754993378428,0.30001239,118340.0,118330.0,0.02819674]
[1754993378727,0.30101239,118340.0,118330.0,0.02819674]
[1754993381324,0.30622239,118340.0,118330.0,0.02610674]
[1754993381530,0.40639466,118340.0,118330.0,0.02610674]
[1754993382652,0.40539466,118340.0,118330.0,0.02610674]
[1754993383076,0.40639466,118340.0,118330.0,0.02610674]
[1754993383299,0.40639466,118340.0,118330.0,0.02810674]
[1754993383459,0.98265858,118340.0,118330.0,0.02810674]
[1754993384067,0.48887909,118340.0,118330.0,0.02810674]
[1754993384273,0.98265858,118340.0,118330.0,0.02810674]
[1754993384481,0.85413858,118340.0,118330.0,0.02810674]
[1754993384683,0.36035909,118340.0,118330.0,0.03012674]
[1754993384883,0.48983909,118340.0,118330.0,0.03012674]
[1754993385382,0.48683909,118340.0,118330.0,0.03012674]
[1754993385634,0.48883909,118340.0,118330.0,0.03012674]
[1754993385799,0.49183909,118340.0,118330.0,0.03012674]
[1754993386542,0.49183909,118340.0,118330.0,0.02810674]
[1754993388384,0.49183909,118340.0,118330.0,0.00310674]
[1754993397471,0.98561858,118340.0,118330.0,0.00310674]
[1754993398212,0.49183909,118340.0,118330.0,0.00310674]
[1754993398731,0.98561858,118340.0,118330.0,0.00310674]
[1754993399272,0.49183909,118340.0,118330.0,0.00310674]
[1754993399887,0.98561858,118340.0,118330.0,0.00310674]
[1754993400332,0.49183909,118340.0,118330.0,0.00310674]
[1754993400540,0.98561858,118340.0,118330.0,0.00310674]
[1754993404500,0.85613858,118340.0,118330.0,0.00310674]
[1754993404733,0.98581858,118340.0,118330.0,0.00310674]
[1754993406745,0.36235909,118340.0,118330.0,0.00310674]
[1754993406921,0.98577858,118340.0,118330.0,0.00310674]
[1754993407488,0.49199909,118340.0,118330.0,0.00310674]
[1754993407688,0.98577858,118340.0,118330.0,0.00310674]
[1754993408664,0.40951466,118340.0,118330.0,0.00310674]
[1754993408844,0.90329415,118340.0,118330.0,0.00310674]
[1754993408994,0.40951466,118340.0,118330.0,0.00310674]
[1754993409195,0.90329415,118340.0,118330.0,0.00310674]
[1754993410233,0.40951466,118340.0,118330.0,0.00310674]
[1754993410410,0.49199909,118340.0,118330.0,0.00310674]
[1754993410610,0.98577858,118340.0,118330.0,0.00310674]
[1754993411041,0.49199909,118340.0,118330.0,0.00310674]
[1754993411314,0.98577858,118340.0,118330.0,0.00310674]
[1754993411462,0.49199909,118340.0,118330.0,0.00310674]
[1754993412131,0.98577858,118340.0,118330.0,0.00310674]
[1754993412696,0.85613858,118340.0,118330.0,0.00310674]
[1754993412912,0.40943466,118340.0,118330.0,0.17420558]
[1754993413331,0.30401239,118340.0,118330.0,0.17420558]
[1754993414128,0.30928239,118340.0,118330.0,0.17420558]
[1754993414372,0.30928239,118340.0,118330.0,0.00518674]
[1754993414589,0.39176682,118340.0,118330.0,0.00518674]
[1754993415529,0.39176682,118340.0,118330.0,0.17420558]
[1754993415914,0.39176682,118340.0,118330.0,0.00518674]
[1754993416368,0.39176682,118340.0,118330.0,0.17420558]
[1754993416905,0.39176682,118340.0,118330.0,0.00518674]
[1754993417725,0.39176682,118340.0,118330.0,0.17420558]
[1754993418045,0.39176682,118340.0,118330.0,0.00518674]
[1754993418335,0.39176682,118340.0,118330.0,0.00310674]
[1754993418692,0.26224682,118340.0,118330.0,0.00310674]
[1754993418891,0.13492783,118340.0,118330.0,0.77030507]
[1754993419572,0.13292783,118340.0,118330.0,0.77030507]
[1754993420014,0.13092783,118340.0,118330.0,0.76798507]
[1754993420389,0.13192783,118340.0,118330.0,0.76798507]
[1754993423525,0.13192783,118340.0,118330.0,0.27420558]
[1754993423773,0.13192783,118340.0,118330.0,0.76798507]
[1754993424462,0.13192783,118340.0,118330.0,0.27420558]
[1754993424703,0.13192783,118340.0,118330.0,0.76798507]
[1754993425862,0.13188783,118340.0,118330.0,0.76798507]
[1754993426288,0.00248783,118340.0,118330.0,0.76798507]
[1754993426504,0.13188783,118340.0,118330.0,0.76798507]
[1754993430679,0.13188783,118340.0,118330.0,0.27420558]
[1754993430879,0.13188783,118340.0,118330.0,0.76798507]
[1754993431151,0.00248783,118340.0,118330.0,0.77030507]
[1754993431287,0.13184783,118340.0,118330.0,0.87302832]
[1754993431683,0.13184783,118340.0,118330.0,0.37924883]
[1754993432023,0.13184783,118340.0,118330.0,0.78798507]
[1754993432236,0.30612239,118340.0,118330.0,0.29420558]
[1754993432475,0.30612239,118340.0,118330.0,0.12310674]
[1754993432655,0.30612239,118340.0,118330.0,0.17212558]
[1754993435196,0.13184783,118340.0,118330.0,0.75798507]
[1754993435413,0.30085239,118340.0,118330.0,0.75798507]
[1754993435597,0.30612239,118340.0,118330.0,0.75798507]
[1754993435818,0.13711783,118340.0,118330.0,0.75798507]
[1754993436454,0.13715783,118340.0,118330.0,0.75798507]
[1754993436671,0.13711783,118340.0,118330.0,0.75798507]
[1754993437085,0.30612239,118340.0,118330.0,0.75798507]
[1754993437291,0.30612239,118340.0,118330.0,0.26420558]
[1754993437531,0.30612239,118340.0,118330.0,0.26212558]
[1754993437747,0.30612239,118340.0,118330.0,0.09310674]
[1754993437965,0.30612239,118340.0,118330.0,0.00310674]
[1754993438761,0.30612239,118340.0,118330.0,0.17212558]
[1754993439193,0.30612239,118340.0,118330.0,0.00310674]
[1754993439659,0.30612239,118340.0,118330.0,0.17212558]
[1754993442699,0.30612239,118340.0,118330.0,0.00310674]
[1754993442927,0.30612239,118340.0,118330.0,0.17212558]
[1754993443668,0.30612239,118340.0,118330.0,0.00310674]
[1754993443885,0.30612239,118340.0,118330.0,0.17212558]
[1754993447523,0.00248783,118340.0,118330.0,0.66801507]
[1754993447734,0.13184783,118340.0,118330.0,0.78033507]
[1754993448155,0.00248783,118340.0,118330.0,0.78033507]
[1754993448365,0.13184783,118340.0,118330.0,0.86305832]
[1754993448515,0.13184783,118340.0,118330.0,0.88843632]
[1754993449382,0.13184783,118340.0,118330.0,0.80339307]
[1754993449557,0.13184783,118340.0,118330.0,0.80239307]
[1754993450337,0.00248783,118340.0,118330.0,0.80239307]
[1754993450544,0.13184783,118340.0,118330.0,0.80471307]
[1754993457162,0.00248783,118340.0,118330.0,1.01679632]
[1754993458221,0.00148783,118340.0,118330.0,1.01679632]
[1754993458433,0.00148783,118340.0,118330.0,0.88743632]
[1754993458876,0.00048783,118340.0,118330.0,0.88743632]
[1754993459312,0.00148783,118340.0,118330.0,0.88843632]
[1754993459728,0.00248783,118340.0,118330.0,0.89043632]
[1754993463569,0.00248783,118340.0,118330.0,1.01979632]
[1754993470205,0.00248783,118340.0,118330.0,1.01747632]
[1754993472188,0.00248783,118340.0,118330.0,1.01979632]
[1754993472396,0.00317,118350.0,118330.0,1.01979632]
[1754993472610,0.0707804,118370.0,118360.0,0.168976]
[1754993472836,0.0727904,118370.0,118360.0,0.76275549]
[1754993473455,0.00518,118370.0,118360.0,0.78812749]
[1754993473875,0.00818,118370.0,118360.0,0.78912749]
[1754993474554,0.00818,118370.0,118360.0,0.79762354]
[1754993474959,0.00818,118370.0,118360.0,0.30384405]
[1754993475166,0.00818,118370.0,118360.0,0.79762354]
[1754993475797,0.00818,118370.0,118360.0,0.79862354]
[1754993476002,0.00918,118370.0,118360.0,0.79862354]
[1754993477076,0.00918,118370.0,118360.0,0.30484405]
[1754993477239,0.77209349,118370.0,118360.0,0.102]
[1754993477438,0.301334,118370.0,118360.0,0.002]
[1754993477644,0.79511349,118370.0,118360.0,0.002]
[1754993478735,0.301334,118370.0,118360.0,0.002]
[1754993479988,0.300894,118370.0,118360.0,0.002]
[1754993483457,0.34231395,118370.0,118360.0,0.002]
[1754993484042,0.300894,118370.0,118360.0,0.002]
[1754993488087,0.277874,118370.0,118360.0,0.002]
[1754993489638,0.77165349,118370.0,118360.0,0.002]
[1754993490862,0.77161349,118370.0,118360.0,0.002]
[1754993491046,0.77161349,118370.0,118360.0,0.00204]
[1754993491857,0.36031843,118370.0,118360.0,0.00204]
[1754993492061,0.87947592,118370.0,118360.0,0.00204]
[1754993493654,1.32547592,118370.0,118360.0,0.00204]
[1754993494104,0.83169643,118370.0,118360.0,0.00204]
[1754993494309,1.32547592,118370.0,118360.0,0.00204]
[1754993497990,0.83169643,118370.0,118360.0,0.00204]
[1754993498190,1.32547592,118370.0,118360.0,0.00204]
[1754993500861,0.723834,118370.0,118360.0,0.00204]
[1754993501021,0.723834,118370.0,118360.0,0.00418]
[1754993501218,0.723834,118370.0,118360.0,0.00204]
[1754993502858,1.21761349,118370.0,118360.0,0.00204]
[1754993503067,0.723834,118370.0,118360.0,0.00204]
[1754993503324,1.30009792,118370.0,118360.0,0.00204]
[1754993505379,0.80631843,118370.0,118360.0,0.00204]
[1754993505556,1.30009792,118370.0,118360.0,0.00204]
[1754993509622,1.42937792,118370.0,118360.0,0.00204]
[1754993510659,0.93559843,118370.0,118360.0,0.00204]
[1754993510899,1.42937792,118370.0,118360.0,0.00204]
[1754993515423,0.93559843,118370.0,118360.0,0.00204]
[1754993515600,1.42937792,118370.0,118360.0,0.00204]
[1754993516565,0.93559843,118370.0,118360.0,0.00204]
[1754993516770,1.42937792,118370.0,118360.0,0.00204]
[1754993518742,1.45496296,118370.0,118360.0,0.00204]
[1754993521270,1.48034096,118370.0,118360.0,0.00204]
[1754993536395,1.48034096,118370.0,118360.0,0.00408]
[1754993537878,1.48034096,118370.0,118360.0,0.00204]
[1754993539372,1.53034096,118370.0,118360.0,0.00204]
[1754993540864,1.40690847,118370.0,118360.0,0.00204]
[1754993542890,1.32442404,118370.0,118360.0,0.00204]
[1754993543165,1.69477104,118370.0,118360.0,0.00204]
[1754993545423,0.29824456,118340.0,118330.0,0.68326435]
[1754993545769,0.12924,118340.0,118330.0,0.68326435]
[1754993546185,0.13024,118340.0,118330.0,0.68526435]
[1754993547614,0.13124,118340.0,118330.0,0.68726435]
[1754993549419,0.002,118340.0,118330.0,0.68726435]
[1754993549617,0.1312,118340.0,118330.0,0.68726435]
[1754993550085,0.1312,118340.0,118330.0,1.05761135]
[1754993550272,0.1312,118340.0,118330.0,1.08298835]
[1754993552186,0.002,118340.0,118330.0,1.08298835]
[1754993552398,0.002,118340.0,118330.0,1.1657116]
[1754993552820,0.002,118340.0,118330.0,0.91873426]
[1754993558587,0.002,118340.0,118330.0,0.91593426]
[1754993559422,0.002,118340.0,118330.0,0.91873426]
[1754993562364,0.002,118340.0,118330.0,0.91593426]
[1754993563607,0.00714,118340.0,118330.0,0.4201776]
[1754993563816,0.00714,118340.0,118330.0,0.91590426]
[1754993564365,0.002,118340.0,118330.0,0.91590426]
[1754993564947,0.002,118340.0,118330.0,0.4221876]
[1754993565148,0.002,118340.0,118330.0,0.91590426]
[1754993566706,0.00404,118340.0,118330.0,0.91389426]
[1754993566909,0.00714,118340.0,118330.0,0.91590426]
[1754993567869,0.002,118340.0,118330.0,0.91590426]
[1754993570551,0.002,118340.0,118330.0,0.91870426]
[1754993570746,0.002,118340.0,118330.0,0.4249876]
[1754993570953,0.002,118340.0,118330.0,0.91870426]
[1754993574329,0.002,118340.0,118330.0,0.91590426]
[1754993574732,0.002,118340.0,118330.0,0.79253376]
[1754993576875,0.002,118340.0,118330.0,0.4221876]
[1754993577082,0.002,118340.0,118330.0,0.79253376]
[1754993578029,0.13116,118340.0,118330.0,0.79253376]
[1754993580365,0.13116,118340.0,118330.0,0.4221876]
[1754993580547,0.13116,118340.0,118330.0,0.79253376]
[1754993582250,0.13116,118340.0,118330.0,0.4221876]
[1754993582461,0.13116,118340.0,118330.0,0.79253376]
[1754993582675,0.13426,118340.0,118330.0,0.4221876]
[1754993582901,0.1332,118340.0,118330.0,0.79253376]
[1754993583119,0.13116,118340.0,118330.0,0.79253376]
[1754993584131,0.13426,118340.0,118330.0,0.79253376]
[1754993585114,0.1363,118340.0,118330.0,0.79253376]
[1754993585967,0.1363,118340.0,118330.0,0.70780051]
[1754993586178,0.30530456,118340.0,118330.0,0.70780051]
[1754993586852,0.1363,118340.0,118330.0,0.70780051]
[1754993591535,0.30530456,118340.0,118330.0,0.53033313]
[1754993591743,0.30530456,118340.0,118330.0,0.67397497]
[1754993592373,0.30530456,118340.0,118330.0,0.30362881]
[1754993592578,0.30530456,118340.0,118330.0,0.12608578]
[1754993592752,0.30530456,118340.0,118330.0,0.00608578]
[1754993593957,0.67365072,118340.0,118330.0,0.00208578]
[1754993594169,0.67465072,118340.0,118330.0,0.00308578]
[1754993594379,0.30630456,118340.0,118330.0,0.00408578]
[1754993594655,0.67665072,118340.0,118330.0,0.00408578]
[1754993594861,0.70612971,118340.0,118330.0,0.00408578]
[1754993595514,0.33578355,118340.0,118330.0,0.00408578]
[1754993600300,0.80630198,118340.0,118330.0,0.00408578]
[1754993600936,0.83168498,118340.0,118330.0,0.00408578]
[1754993603563,0.46133882,118340.0,118330.0,0.00408578]
[1754993603757,0.83168498,118340.0,118330.0,0.00408578]
[1754993604831,1.20203114,118340.0,118330.0,0.00408578]
[1754993605052,0.83168498,118340.0,118330.0,0.00408578]
[1754993605187,1.20203114,118340.0,118330.0,0.00408578]
[1754993606297,0.46133882,118340.0,118330.0,0.00408578]
[1754993606496,1.20203114,118340.0,118330.0,0.00408578]
[1754993608149,0.46133882,118340.0,118330.0,0.00408578]
[1754993608515,1.20203114,118340.0,118330.0,0.00408578]
[1754993611507,0.46133882,118340.0,118330.0,0.00408578]
[1754993611711,1.20203114,118340.0,118330.0,0.00408578]
[1754993615967,1.17564814,118340.0,118330.0,0.00308578]
[1754993616205,1.17364814,118340.0,118330.0,0.00208578]
[1754993616414,1.17964814,118340.0,118330.0,0.00308578]